fUSD/lending_fUSD_20260322
["ID","MTS","AMOUNT","RATE_DAILY","PERIOD"]
[408772786,1774216956074,-272.62944185,0.00013933,2]
[408772787,1774216956096,-578.20924308,0.00013966,2]
[408772788,1774216956119,-9211.34798985,0.00013966,2]
[408772789,1774216956141,-151.0,0.00013966,2]
[408772790,1774216956162,-174.61919141,0.00013966,2]
[408772791,1774216956187,-282.71673119,0.00013988,2]
[408772792,1774216956209,-501.0,0.00014,2]
[408772793,1774216956233,-511.0,0.00014,2]
[408772794,1774216956255,-9552.16786547,0.00014021,2]
[408772795,1774216956277,-151.0,0.00014021,2]
[408772796,1774216956298,-293.17725025,0.00014043,2]
[408772797,1774216956320,-9905.5980765,0.00014076,2]
[408772798,1774216956341,-151.0,0.00014076,2]
[408772799,1774216956363,-304.02480851,0.00014098,2]
[408772800,1774216956385,-10272.10520533,0.00014131,2]
[408772801,1774216956406,-151.0,0.00014131,2]
[408772802,1774216956429,-315.27372642,0.00014153,2]
[408772803,1774216956451,-10652.17309792,0.00014186,2]
[408772804,1774216956476,-151.0,0.00014186,2]
[408772805,1774216956497,-326.9388543,0.00014208,2]
[408772806,1774216956520,-11046.30350255,0.00014241,2]
[408772807,1774216956545,-151.0,0.00014241,2]
[408772808,1774216956566,-200.0,0.00014242,2]
[408772809,1774216956587,-434.22122235,0.00014263,2]
[408772810,1774216956608,-11455.01673214,0.00014296,2]
[408772811,1774216956631,-11878.85235123,0.00014351,2]
[408772812,1774216956654,-500.0,0.00014365,2]
[408772813,1774216956680,-500.0,0.00014365,2]
[408772814,1774216956701,-695.39793187,0.00014365,2]
[408772815,1774216956723,-151.0,0.00014365,2]
[408772816,1774216956745,-500.0,0.00014365,2]
[408772817,1774216956768,-500.0,0.00014365,2]
[408772818,1774216956790,-500.0,0.00014365,2]
[408772819,1774216956812,-500.0,0.00014365,2]
[408772820,1774216956834,-500.0,0.00014365,2]
[408772821,1774216956856,-500.0,0.00014365,2]
[408772822,1774216956878,-500.0,0.00014365,2]
[408772823,1774216956900,-500.0,0.00014365,2]
[408772824,1774216957256,-500.0,0.00014365,2]
[408772825,1774216957314,-500.0,0.00014365,2]
[408772826,1774216957336,-500.0,0.00014365,2]
[408772827,1774216957358,-500.0,0.00014365,2]
[408772828,1774216957379,-500.0,0.00014365,2]
[408772829,1774216957401,-500.0,0.00014365,2]
[408772830,1774216957422,-500.0,0.00014365,2]
[408772831,1774216957449,-500.0,0.00014365,2]
[408772832,1774216957473,-500.0,0.00014365,2]
[408772833,1774216957501,-500.0,0.00014365,2]
[408772834,1774216957523,-500.0,0.00014365,2]
[408772835,1774216957547,-500.0,0.00014365,2]
[408772836,1774216957570,-500.0,0.00014365,2]
[408772837,1774216957592,-500.0,0.00014365,2]
[408772838,1774216957614,-500.0,0.00014365,2]
[408772839,1774216957636,-500.0,0.00014365,2]
[408772840,1774216957659,-558.19858136,0.00014365,2]
[408772841,1774216957682,-151.0,0.00014365,2]
[408772842,1774216957705,-151.0,0.00014365,2]
[408772843,1774216957728,-151.0,0.00014365,2]
[408772844,1774216957750,-151.0,0.00014365,2]
[408772845,1774216957773,-151.0,0.00014365,2]
[408772846,1774216957796,-500.0,0.00014365,2]
[408772847,1774216957819,-151.0,0.00014365,2]
[408772848,1774216957842,-500.0,0.00014365,2]
[408772849,1774216957865,-155.08,0.00014382,2]
[408772850,1774216957890,-12318.36988823,0.00014406,2]
[408772851,1774216957912,-500.0,0.0001442,2]
[408772852,1774216957935,-150.0,0.00014427,2]
[408772853,1774216957958,-12774.14957409,0.00014461,2]
[408772854,1774216957980,-500.0,0.00014475,2]
[408772855,1774216958003,-13246.79310833,0.00014516,2]
[408772856,1774216958025,-500.0,0.0001453,2]
[408772857,1774216958049,-13736.92445334,0.00014571,2]
[408772858,1774216958073,-500.0,0.00014585,2]
[408772859,1774216958096,-500.0,0.00014603,2]
[408772860,1774216958119,-418.7014781,0.00014626,2]
[408772861,1774216958141,-500.0,0.0001464,2]
[408772862,1774216958163,-1007.0,0.00014671,2]
[408772863,1774216958187,-500.0,0.00014695,2]
[408772864,1774216958209,-1858.46300559,0.000147,2]
[408772865,1774216958232,-500.0,0.00014726,2]
[408772866,1774216958254,-500.0,0.00014726,2]
[408772867,1774216958276,-500.0,0.00014726,2]
[408772868,1774216958298,-500.0,0.00014726,2]
[408772869,1774216958319,-500.0,0.00014726,2]
[408772870,1774216958341,-500.0,0.00014726,2]
[408772871,1774216958362,-500.0,0.00014726,2]
[408772872,1774216958383,-500.0,0.00014726,2]
[408772873,1774216958405,-500.0,0.00014726,2]
[408772874,1774216958431,-500.0,0.00014726,2]
[408772875,1774216958453,-153.65437975,0.00014726,2]
[408772876,1774216958478,-500.0,0.0001475,2]
[408772877,1774216958502,-300.0,0.00014754,2]
[408772878,1774216958525,-300.0,0.00014754,2]
[408772879,1774216958548,-300.0,0.00014754,2]
[408772880,1774216958570,-300.0,0.00014754,2]
[408772881,1774216958591,-300.0,0.00014754,2]
[408772882,1774216958613,-600.0,0.00014754,2]
[408772883,1774216958635,-600.0,0.00014754,2]
[408772884,1774216958657,-600.0,0.00014754,2]
[408772885,1774216958683,-600.0,0.00014754,2]
[408772886,1774216958705,-607.0025678,0.00014754,2]
[408772887,1774216958726,-150.0,0.00014754,2]
[408772888,1774216958748,-204.4108358,0.00014754,2]
[408772889,1774216958770,-2500.0,0.00014754,2]
[408772890,1774216958792,-500.0,0.00014754,2]
[408772891,1774216958814,-500.0,0.00014754,2]
[408772892,1774216958836,-500.0,0.00014754,2]
[408772893,1774216958858,-500.0,0.00014754,2]
[408772894,1774216958880,-500.0,0.00014754,2]
[408772895,1774216958901,-200.0,0.00014754,2]
[408772896,1774216958924,-250.0,0.00014754,2]
[408772897,1774216958948,-2500.0,0.00014754,2]
[408772898,1774216958970,-2500.0,0.00014754,2]
[408772899,1774216958992,-2500.0,0.00014754,2]
[408772900,1774216959013,-2500.0,0.00014754,2]
[408772901,1774216959034,-300.0,0.00014754,2]
[408772902,1774216959056,-300.0,0.00014754,2]
[408772903,1774216959082,-300.0,0.00014754,2]
[408772904,1774216959105,-289.12962116,0.00014754,2]
[408772905,1774216959127,-275.0,0.0001476,2]
[408772906,1774216959150,-418.70147808,0.00014768,2]
[408772907,1774216959171,-2500.0,0.000148,2]
[408772908,1774216959200,-500.0,0.00014805,2]
[408772909,1774216959243,-223.91570413,0.00014809,2]
[408772910,1774216959287,-4041.86655683,0.00014809,2]
[408772911,1774216959325,-501.0,0.00014846,2]
[408772912,1774216959346,-500.0,0.0001486,2]
[408772913,1774216959372,-500.0,0.00014899,2]
[408772914,1774216959396,-500.0,0.00014899,2]
[408772915,1774216959420,-500.0,0.00014899,2]
[408772916,1774216959446,-354.44594309,0.00014899,2]
[408772917,1774216959472,-532151.14677001,0.000149,2]
[408772918,1774217059021,152.69,6.964e-05,2]
[408772919,1774217059300,152.69,7.545e-05,2]
[408772920,1774217059488,152.69,8.125e-05,2]
[408772921,1774217059687,152.69,8.706e-05,2]
[408772922,1774217059948,152.69,9.286e-05,2]
[408772923,1774217107176,155.0,9.286e-05,3]
[408772924,1774217111332,223.0,9.286e-05,3]
[408772925,1774217166778,156.0,9.286e-05,3]
[408772926,1774217226447,156.0,9.286e-05,3]
[408772927,1774217286091,156.0,9.286e-05,3]
[408772941,1774217432487,-249.0,9.866e-05,2]
[408772942,1774217432497,-152.69,9.866e-05,2]
[408772943,1774217432507,-152.69,0.00010447,2]
[408772944,1774217432516,-300.0,0.00010852,2]
[408772945,1774217432525,-300.0,0.00010852,2]
[408772946,1774217432535,-254.0,0.00010852,2]
[408772947,1774217432544,-1200.0,0.00010852,2]
[408772948,1774217432554,-300.0,0.00010852,2]
[408772949,1774217432563,-234.39453643,0.00010853,2]
[408772950,1774217432573,-1802.25993824,0.00010853,2]
[408772951,1774217432589,-305.25326948,0.00010853,2]
[408772952,1774217432600,-360.80856145,0.00010853,2]
[408772953,1774217435753,-2531.67823083,0.00010853,2]
[408772954,1774217435763,-500.0,0.000109,2]
[408772955,1774217435773,-459.51301064,0.000109,2]
[408772956,1774217435782,-500.0,0.000109,2]
[408772957,1774217435792,-152.69,0.00011027,2]
[408772958,1774217435801,-68.08002092,0.00011448,2]
[408772959,1774217435829,-931.91997908,0.00011448,2]
[408772960,1774217435838,-152.69,0.00011608,2]
[408772961,1774217435848,-300.0,0.00011927,2]
[408772962,1774217435858,-420.0,0.00011927,2]
[408772963,1774217435867,-1680.0,0.00011937,2]
[408772964,1774217435876,-1003.81131153,0.00011996,2]
[408772965,1774217435885,-152.69,0.00012188,2]
[408772966,1774217435895,-152.69,0.00012768,2]
[408772967,1774217435904,-150.0,0.000128,2]
[408772968,1774217435914,-250.0,0.00013037,2]
[408772969,1774217435923,-587.0,0.00013108,2]
[408772970,1774217435932,-2351.0,0.00013131,2]
[408772971,1774217435942,-281.35,0.00013278,2]
[408772972,1774217435951,-500.0,0.00013313,2]
[408772973,1774217435961,-152.69,0.00013349,2]
[408772974,1774217435971,-3000.0,0.00013534,2]
[408772975,1774217435980,-3000.0,0.00013808,2]
[408772976,1774217435990,-152.69,0.00013929,2]
[408772977,1774217436000,-501.0,0.00014,2]
[408772978,1774217436010,-200.0,0.00014,2]
[408772979,1774217436019,-155.8094,0.000141,2]
[408772980,1774217436029,-150.0,0.00014162,2]
[408772981,1774217436039,-4144.6254,0.00014163,2]
[408772982,1774217436049,-13457.7762,0.00014163,2]
[408772983,1774217436062,-979.16666667,0.00014237,2]
[408772984,1774217436072,-160.0,0.00014249,2]
[408772985,1774217436082,-578.20924308,0.00014296,2]
[408772986,1774217436091,-150.0,0.00014309,2]
[408772987,1774217436101,-823.0,0.00014407,2]
[408772988,1774217436110,-3292.0,0.00014444,2]
[408772989,1774217436119,-400.0,0.000147,5]
[408772990,1774217436129,-1000.0,0.00014709,2]
[408772991,1774217436138,-2500.0,0.000148,2]
[408772992,1774217436147,-800.0,0.000148,5]
[408772993,1774217436157,-501.0,0.00014805,2]
[408772994,1774217436166,-468.92486022,0.00014813,2]
[408772995,1774217436175,-504.70728104,0.00014873,2]
[408772996,1774217436184,-500.0,0.00014873,2]
[408772997,1774217436194,-500.0,0.00014873,2]
[408772998,1774217436203,-500.0,0.00014891,2]
[408772999,1774217436213,-256.52975155,0.00014891,2]
[408773000,1774217436222,-695.39793187,0.00014891,2]
[408773001,1774217436231,-500.0,0.00014891,2]
[408773002,1774217436241,-7660.64792611,0.00014891,2]
[408773003,1774217436251,-151.0,0.00014891,2]
[408773004,1774217436261,-151.0,0.00014891,2]
[408773005,1774217436271,-151.0,0.00014891,2]
[408773006,1774217436280,-151.0,0.00014891,2]
[408773007,1774217436289,-151.0,0.00014891,2]
[408773008,1774217436298,-151.0,0.00014891,2]
[408773009,1774217436310,-151.0,0.00014891,2]
[408773010,1774217436319,-151.0,0.00014891,2]
[408773011,1774217436329,-151.0,0.00014891,2]
[408773012,1774217436339,-151.0,0.00014891,2]
[408773013,1774217436348,-151.0,0.00014891,2]
[408773014,1774217436358,-151.0,0.00014891,2]
[408773015,1774217436367,-151.0,0.00014891,2]
[408773016,1774217436377,-500.0,0.00014891,2]
[408773017,1774217436386,-500.0,0.00014891,2]
[408773018,1774217436395,-250.0,0.00014891,2]
[408773019,1774217436404,-200.0,0.00014891,2]
[408773020,1774217436414,-500.0,0.00014891,2]
[408773021,1774217436424,-174.61919141,0.00014891,2]
[408773022,1774217436433,-250.0,0.00014891,2]
[408773023,1774217436443,-500.0,0.00014891,2]
[408773024,1774217436452,-250.0,0.00014891,2]
[408773025,1774217436461,-500.0,0.00014891,2]
[408773026,1774217436470,-250.0,0.00014891,2]
[408773027,1774217436479,-500.0,0.00014891,2]
[408773028,1774217436488,-250.0,0.00014891,2]
[408773029,1774217436497,-500.0,0.00014891,2]
[408773030,1774217436507,-250.0,0.00014891,2]
[408773031,1774217436516,-500.0,0.00014891,2]
[408773032,1774217436525,-250.0,0.00014891,2]
[408773033,1774217436535,-500.0,0.00014891,2]
[408773034,1774217436544,-250.0,0.00014891,2]
[408773035,1774217436555,-500.0,0.00014891,2]
[408773036,1774217436565,-250.0,0.00014891,2]
[408773037,1774217436575,-500.0,0.00014891,2]
[408773038,1774217436587,-250.0,0.00014891,2]
[408773039,1774217436596,-500.0,0.00014891,2]
[408773040,1774217436606,-250.0,0.00014891,2]
[408773041,1774217436616,-250.0,0.00014891,2]
[408773042,1774217436625,-500.0,0.00014891,2]
[408773043,1774217436635,-500.0,0.00014891,2]
[408773044,1774217436644,-500.0,0.00014891,2]
[408773045,1774217436656,-500.0,0.00014891,2]
[408773046,1774217436665,-553.30771201,0.00014891,2]
[408773047,1774217436674,-168.32035292,0.00014899,2]
[408773048,1774217436684,-500.0,0.00014899,2]
[408773049,1774217436694,-500.0,0.00014899,2]
[408773050,1774217436703,-500.0,0.00014899,2]
[408773051,1774217436713,-500.0,0.00014899,2]
[408773052,1774217436722,-25451.85361981,0.000149,2]
[408773053,1774217436734,-10144.88756793,0.000149,2]
[408773054,1774217436749,-1858.46300559,0.000149,2]
[408773055,1774217436761,-50181.30630105,0.000149,2]
[408773056,1774217438156,-160.0,0.00014237,2]
[408773057,1774217438166,-4349.0,0.000149,2]
[408773058,1774217438216,-79280.36122321,0.000149,2]
[408773059,1774217438228,-18354.6604124,0.000149,2]
[408773060,1774217438237,-1300.0,0.000149,5]
[408773061,1774217438246,-3000.0,0.00014904,2]
[408773062,1774217438256,-468.92486021,0.00014934,2]
[408773063,1774217438265,-500.0,0.00014946,2]
[408773064,1774217438274,-151.0,0.00014946,2]
[408773065,1774217438284,-500.0,0.00015,2]
[408773066,1774217438293,-500.0,0.00015,2]
[408773067,1774217438303,-500.0,0.00015,2]
[408773068,1774217438313,-500.0,0.00015,2]
[408773069,1774217438322,-500.0,0.00015,2]
[408773070,1774217438331,-500.0,0.00015,2]
[408773071,1774217438340,-500.0,0.00015,2]
[408773072,1774217438350,-500.0,0.00015,2]
[408773073,1774217438359,-500.0,0.00015,2]
[408773074,1774217438368,-500.0,0.00015,2]
[408773075,1774217438378,-500.0,0.00015,2]
[408773076,1774217438388,-500.0,0.00015,2]
[408773078,1774217438397,-500.0,0.00015,2]
[408773080,1774217438407,-500.0,0.00015,2]
[408773082,1774217438416,-500.0,0.00015,2]
[408773084,1774217438425,-500.0,0.00015,2]
[408773086,1774217438435,-500.0,0.00015,2]
[408773088,1774217438444,-500.0,0.00015,2]
[408773090,1774217438454,-500.0,0.00015,2]
[408773094,1774217438463,-500.0,0.00015,2]
[408773096,1774217438473,-500.0,0.00015,2]
[408773098,1774217438482,-500.0,0.00015,2]
[408773100,1774217438491,-500.0,0.00015,2]
[408773102,1774217438499,-441.37,0.00015,2]
[408773103,1774217438509,-500.0,0.00015,2]
[408773104,1774217438518,-500.0,0.00015,2]
[408773105,1774217438528,-500.0,0.00015,2]
[408773106,1774217438537,-500.0,0.00015,2]
[408773107,1774217438546,-500.0,0.00015,2]
[408773108,1774217438556,-500.0,0.00015,2]
[408773109,1774217438565,-500.0,0.00015,2]
[408773110,1774217438575,-500.0,0.00015,2]
[408773111,1774217438588,-500.0,0.00015,2]
[408773112,1774217438597,-500.0,0.00015,2]
[408773113,1774217438606,-500.0,0.00015,2]
[408773114,1774217438614,-500.0,0.00015,2]
[408773115,1774217438625,-500.0,0.00015,2]
[408773116,1774217438634,-500.0,0.00015,2]
[408773117,1774217438644,-500.0,0.00015,2]
[408773118,1774217438654,-500.0,0.00015,2]
[408773119,1774217438663,-500.0,0.00015,2]
[408773120,1774217438672,-500.0,0.00015,2]
[408773121,1774217438682,-500.0,0.00015,2]
[408773122,1774217438690,-500.0,0.00015,2]
[408773124,1774217438699,-500.0,0.00015,2]
[408773126,1774217438708,-500.0,0.00015,2]
[408773127,1774217438719,-500.0,0.00015,2]
[408773129,1774217438728,-500.0,0.00015,2]
[408773131,1774217438738,-500.0,0.00015,2]
[408773132,1774217438747,-500.0,0.00015,2]
[408773133,1774217438757,-500.0,0.00015,2]
[408773134,1774217438767,-500.0,0.00015,2]
[408773135,1774217438776,-500.0,0.00015,2]
[408773136,1774217438786,-365.02,0.00015,2]
[408773137,1774217438795,-500.0,0.00015,2]
[408773138,1774217438805,-500.0,0.00015,2]
[408773139,1774217438815,-542.0,0.00015,2]
[408773140,1774217438824,-787.10595,0.00015,2]
[408773141,1774217438833,-744.0,0.00015,2]
[408773142,1774217438843,-500.0,0.00015001,2]
[408773143,1774217438852,-151.0,0.00015001,2]
[408773144,1774217438862,-195.26752149,0.00015055,2]
[408773145,1774217438889,-273.65733872,0.00015055,2]
[408773146,1774217438899,-500.0,0.00015056,2]
[408773147,1774217438908,-151.0,0.00015056,2]
[408773148,1774217438917,-168.75,0.00015068,2]
[408773149,1774217438926,-150.2449054,0.000151,2]
[408773150,1774217438936,-483.26661068,0.00015111,2]
[408773152,1774217440832,-16.73338932,0.00015111,2]
[408773154,1774217440842,-151.0,0.00015111,2]
[408773155,1774217440851,-500.0,0.00015147,2]
[408773156,1774217440861,-194.204,0.00015151,2]
[408773157,1774217440871,-3404.249,0.00015151,2]
[408773158,1774217440882,-500.0,0.00015166,2]
[408773159,1774217440892,-151.0,0.00015166,2]
[408773161,1774217440901,-468.92486021,0.00015175,2]
[408773162,1774217440911,-3000.0,0.00015178,2]
[408773163,1774217440920,-4300.09222886,0.00015184,2]
[408773181,1774217443233,-699.90777114,0.00015184,2]
[408773183,1774217443243,-10000.0,0.00015205,2]
[408773184,1774217443253,-500.0,0.00015221,2]
[408773185,1774217443262,-151.0,0.00015221,2]
[408773186,1774217443271,-500.0,0.00015276,2]
[408773187,1774217443281,-151.0,0.00015276,2]
[408773188,1774217443290,-255.0,0.00015281,2]
[408773189,1774217443300,-500.0,0.00015283,2]
[408773190,1774217443311,-444.81658545,0.00015283,2]
[408773191,1774217443320,-305.44204738,0.00015283,2]
[408773192,1774217443330,-500.0,0.00015283,2]
[408773193,1774217443338,-500.0,0.00015283,2]
[408773194,1774217443348,-396.53758201,0.00015283,2]
[408773195,1774217443357,-500.0,0.00015283,2]
[408773196,1774217443366,-274371.73259875,0.00015284,2]
[408773197,1774217443389,-4147.57278564,0.00015284,2]
[408773198,1774217443459,-8983.80416958,0.00015284,2]
[408773199,1774217443470,-3992.7958873,0.00015284,2]
[408773227,1774217447523,-989.09833512,0.00015196,4]
[408773228,1774217447533,-10.90166488,0.00015284,2]
[408773229,1774217447548,-418.680849,0.00015284,2]
[408773230,1774217447651,-1016.42823898,0.00015284,2]
[408773231,1774217447682,-6785.89999998,0.00015284,2]
[408773232,1774217447693,-4082.59999986,0.00015284,2]
[408773233,1774217447705,-9961.51207549,0.00015284,2]
[408773234,1774218538305,9154.01,9.5e-05,3]
[408773235,1774218538328,10000.01,9.5e-05,3]
[408773236,1774218538349,10000.01,9.5e-05,3]
[408773237,1774218538371,10000.01,9.5e-05,3]
[408773238,1774218538393,10000.01,9.5e-05,3]
[408773239,1774218538905,10000.01,9.5e-05,3]
[408773240,1774218538931,10000.01,9.5e-05,3]
[408773241,1774218538954,10000.01,9.5e-05,3]
[408773242,1774218538977,10000.01,9.5e-05,3]
[408773243,1774218538998,10000.01,9.5e-05,3]
[408773244,1774218539025,380.68966011,9.5e-05,3]
[408773249,1774218606938,223.0,9.5e-05,3]
[408773264,1774218634264,-248.0,9.766e-05,2]
[408773265,1774218634274,-182.0,9.766e-05,2]
[408773266,1774218634284,-223.0,0.00010684,3]
[408773267,1774218634293,-250.0,0.00010743,2]
[408773268,1774218634304,-1034.02987452,0.000108,2]
[408773269,1774218634317,-532.87876536,0.000114,2]
[408773270,1774218634327,-300.0,0.00011506,2]
[408773271,1774218634336,-1200.0,0.00011506,2]
[408773272,1774218634346,-193.0,0.00011506,2]
[408773273,1774218634356,-3265.51,0.00011507,2]
[408773274,1774218634366,-223.0,0.00011868,3]
[408773275,1774218634375,-166.66,0.0001199,2]
[408773276,1774218634385,-150.0,0.00012,2]
[408773277,1774218634395,-166.66,0.00012242,2]
[408773278,1774218634405,-1600.0,0.00012443,2]
[408773279,1774218634415,-289.4,0.00012445,2]
[408773280,1774218634424,-166.66,0.00012495,2]
[408773281,1774218634434,-2611.56,0.00012517,2]
[408773282,1774218634444,-200.0,0.00012595,2]
[408773283,1774218634453,-420.0,0.00012637,2]
[408773284,1774218634463,-324.2352034,0.00012656,2]
[408773285,1774218634475,-353.98356,0.00012656,2]
[408773286,1774218634486,-1001.7812366,0.00012656,2]
[408773287,1774218634500,-500.0,0.00012669,2]
[408773288,1774218634509,-166.66,0.00012747,2]
[408773289,1774218634519,-250.0,0.00012904,2]
[408773290,1774218634529,-150.0,0.00012922,2]
[408773291,1774218634538,-150.0,0.00012999,2]
[408773292,1774218634548,-166.66,0.00013,2]
[408773293,1774218634557,-250.0,0.00013,2]
[408773294,1774218634567,-3640.50018722,0.00013,2]
[408773295,1774218634583,-400.0,0.00013,2]
[408773296,1774218634596,-1500.0,0.00013,2]
[408773297,1774218634612,-102.32844174,0.00013,2]
[408773298,1774218634621,-150.0,0.00013,2]
[408773299,1774218634631,-428.91550056,0.00013047,2]
[408773300,1774218634642,-738.86152533,0.00013047,2]
[408773301,1774218634653,-547.77308168,0.00013047,2]
[408773302,1774218634666,-3212.55989243,0.00013047,2]
[408773303,1774218634675,-3171.13653461,0.0001305,2]
[408773304,1774218634685,-223.0,0.00013053,3]
[408773305,1774218634698,-166.66,0.00013252,2]
[408773306,1774218634707,-2800.0,0.0001326,2]
[408773307,1774218634717,-155.4877,0.000133,2]
[408773308,1774218634727,-910.28361406,0.00013389,2]
[408773309,1774218634736,-500.0,0.00013534,2]
[408773310,1774218634745,-500.0,0.00013545,2]
[408773311,1774218634756,-979.16666667,0.00013586,2]
[408773312,1774218634765,-160.0,0.00013586,2]
[408773313,1774218634776,-371.43,0.00013699,2]
[408773314,1774218634785,-1000.0,0.00013861,2]
[408773315,1774218634794,-2866.4457,0.00013862,2]
[408773316,1774218634803,-587.0,0.0001388,2]
[408773317,1774218634813,-2351.0,0.00013922,2]
[408773318,1774218634823,-166.66,0.00013952,2]
[408773319,1774218634833,-1000.0,0.00013961,2]
[408773320,1774218634842,-21426.1105,0.00013962,2]
[408773321,1774218634853,-2500.0,0.00013963,2]
[408773322,1774218634863,-500.0,0.00013964,2]
[408773323,1774218634874,-500.0,0.00013964,2]
[408773324,1774218634885,-500.0,0.00013964,2]
[408773325,1774218634900,-151.0,0.00013964,2]
[408773326,1774218634911,-200.0,0.00013964,2]
[408773327,1774218634920,-500.0,0.00013964,2]
[408773328,1774218634931,-500.0,0.00013964,2]
[408773329,1774218634942,-500.0,0.00013964,2]
[408773330,1774218634951,-500.0,0.00013964,2]
[408773331,1774218634961,-500.0,0.00013964,2]
[408773332,1774218634970,-151.0,0.00013964,2]
[408773333,1774218634980,-500.0,0.00013964,2]
[408773334,1774218634989,-151.0,0.00013964,2]
[408773335,1774218634999,-500.0,0.00013964,2]
[408773336,1774218635010,-151.0,0.00013964,2]
[408773337,1774218635020,-500.0,0.00013964,2]
[408773338,1774218635029,-151.0,0.00013964,2]
[408773339,1774218635039,-500.0,0.00013964,2]
[408773340,1774218635049,-151.0,0.00013964,2]
[408773341,1774218635059,-151.0,0.00013964,2]
[408773342,1774218635068,-151.0,0.00013964,2]
[408773343,1774218635077,-500.0,0.00013964,2]
[408773344,1774218635087,-151.0,0.00013964,2]
[408773345,1774218635096,-151.0,0.00013964,2]
[408773346,1774218635105,-500.0,0.00013964,2]
[408773347,1774218635115,-151.0,0.00013964,2]
[408773348,1774218635125,-151.0,0.00013964,2]
[408773349,1774218635135,-500.0,0.00013964,2]
[408773350,1774218635145,-151.0,0.00013964,2]
[408773351,1774218635155,-151.0,0.00013964,2]
[408773352,1774218635164,-500.0,0.00013964,2]
[408773353,1774218635174,-151.0,0.00013964,2]
[408773354,1774218635184,-151.0,0.00013964,2]
[408773355,1774218635194,-500.0,0.00013964,2]
[408773356,1774218635203,-151.0,0.00013964,2]
[408773357,1774218635213,-151.0,0.00013964,2]
[408773358,1774218635223,-500.0,0.00013964,2]
[408773359,1774218635233,-151.0,0.00013964,2]
[408773360,1774218635243,-151.0,0.00013964,2]
[408773361,1774218635255,-500.0,0.00013964,2]
[408773362,1774218635265,-151.0,0.00013964,2]
[408773363,1774218635275,-151.0,0.00013964,2]
[408773364,1774218635284,-500.0,0.00013964,2]
[408773365,1774218635307,-151.0,0.00013964,2]
[408773366,1774218635318,-500.0,0.00013964,2]
[408773367,1774218635328,-151.0,0.00013964,2]
[408773368,1774218635338,-643.86066983,0.00013964,2]
[408773369,1774218635347,-151.0,0.00013964,2]
[408773370,1774218635357,-151.0,0.00013964,2]
[408773371,1774218635367,-151.0,0.00013964,2]
[408773372,1774218635377,-151.0,0.00013964,2]
[408773373,1774218635387,-151.0,0.00013964,2]
[408773374,1774218635397,-151.0,0.00013964,2]
[408773375,1774218635406,-151.0,0.00013964,2]
[408773376,1774218635416,-1008.97237588,0.00013972,2]
[408773377,1774218635429,-23726.07666999,0.00013972,2]
[408773378,1774218638293,-513.69980222,0.00013872,2]
[408773379,1774218638356,-71939.90705086,0.00013872,2]
[408773380,1774218638368,-38705.1093591,0.00013872,2]
[408773382,1774218640688,-94756.06066881,0.00013872,2]
[408773383,1774218641429,-871.51706275,0.00013872,2]